fUSD/lending_fUSD_20251110
["ID","MTS","AMOUNT","RATE_DAILY","PERIOD"]
[393563557,1762801844491,-173.98,0.00027244,2]
[393563559,1762801844500,-93443.83,0.00027337,2]
[393563561,1762801844509,-150.0,0.00027369,2]
[393563563,1762801844519,-4061.34701138,0.0002739,2]
[393563565,1762801844531,-8023.23532379,0.0002739,2]
[393563567,1762801844541,-150.0,0.00027397,7]
[393563569,1762801844550,-33126.56,0.00027397,2]
[393563571,1762801844560,-196.37,0.00027397,2]
[393563573,1762801844569,-600.0,0.00027397,80]
[393563575,1762801844578,-3823.71,0.000274,2]
[393563577,1762801844587,-4286.77,0.000274,7]
[393563579,1762801844597,-942.17,0.000274,7]
[393563581,1762801844606,-198.65666027,0.000275,2]
[393563583,1762801844615,-22708.74,0.000275,7]
[393563585,1762801844625,-542.68467808,0.000275,2]
[393563587,1762801844635,-150.0,0.00027585,2]
[393563589,1762801844644,-150.0,0.00027585,2]
[393563591,1762801844654,-150.105,0.00027585,2]
[393563593,1762801844663,-150.128,0.00027585,2]
[393563595,1762801844672,-150.0,0.00027585,2]
[393563597,1762801844681,-261.688,0.00027585,2]
[393563599,1762801844690,-1316.0,0.00027585,2]
[393563601,1762801844699,-574.0,0.00027585,2]
[393563603,1762801844708,-3426.0,0.00027585,2]
[393563605,1762801844717,-820.0,0.00027585,2]
[393563607,1762801844727,-1597.0,0.00027585,2]
[393563609,1762801844737,-813.0,0.00027585,2]
[393563610,1762801844747,-1274.0,0.00027585,2]
[393563611,1762801844757,-1189.0,0.00027585,2]
[393563613,1762801844767,-1305.4,0.00027671,30]
[393563615,1762801844777,-332.60791905,0.00027694,2]
[393563617,1762801844786,-386.87667747,0.00027694,2]
[393563619,1762801844796,-300.0,0.00027999,10]
[393563621,1762801844805,-70452.76972357,0.00028,2]
[393563623,1762801844814,-249685.74592918,0.00028,2]
[393563625,1762801844823,-50239.4028386,0.00028,2]
[393563627,1762801844833,-160.0,0.00028,2]
[393563629,1762801844842,-23559.08686281,0.00028,2]
[393563631,1762801844851,-2000.0,0.000281,2]
[393563633,1762801844861,-2538.23,0.00028501,2]
[393563635,1762801844870,-5107.09905799,0.00028728,2]
[393563637,1762801844879,-645.61261135,0.00028745,2]
[393563639,1762801844888,-231.28369723,0.00028745,2]
[393563641,1762801844898,-13137.72788401,0.0002875,2]
[393563644,1762801844917,-164.0,0.00028767,14]
[393563646,1762801844927,-16587.43650648,0.00028888,2]
[393563648,1762801844938,-6662.0,0.00028965,2]
[393563650,1762801844949,-2142.0,0.00028965,2]
[393563652,1762801844964,-6479.0,0.00028965,2]
[393563654,1762801844974,-1927.41488702,0.00029,2]
[393563657,1762801844985,-344.91441206,0.00029063,2]
[393563659,1762801844995,-401.19111454,0.00029063,2]
[393563661,1762801845006,-503.69,0.00029155,2]
[393563663,1762801845016,-500.0,0.00029155,30]
[393563665,1762801845026,-628.72901669,0.00029155,2]
[393563667,1762801845038,-500.0,0.00029155,7]
[393563669,1762801845048,-500.0,0.00029155,30]
[393563671,1762801845058,-500.0,0.00029155,30]
[393563673,1762801845068,-173.98,0.0002919,2]
[393563675,1762801845078,-192.62359444,0.00029393,30]
[393563677,1762801845088,-7000.85975281,0.000296,30]
[393563679,1762801845097,-8251.37,0.00029815,2]
[393563681,1762801845107,-150.99,0.00029815,2]
[393563683,1762801845119,-580.75,0.00029815,10]
[393563686,1762801845129,-250.15,0.00029815,2]
[393563687,1762801845140,-3328.58,0.00029815,2]
[393563689,1762801845150,-9999.99,0.00029815,2]
[393563691,1762801845159,-77889.15802836,0.000299,2]
[393563694,1762801845170,-500.0,0.00029958,2]
[393563696,1762801845180,-500.0,0.00029958,2]
[393563698,1762801845189,-500.0,0.00029958,30]
[393563700,1762801845199,-234.17280169,0.0002999,2]
[393563702,1762801845209,-116882.14656401,0.0003,5]
[393563704,1762801845219,-10000.0,0.0003,10]
[393563706,1762801845230,-5648.32696796,0.0003,2]
[393563708,1762801845240,-4657.27231467,0.0003,2]
[393563710,1762801845250,-19618.35052032,0.0003,2]
[393563712,1762801845260,-1793.59705307,0.0003,2]
[393563714,1762801845270,-606.4859445,0.0003,2]
[393563716,1762801845280,-412.90463302,0.0003,2]
[393563718,1762801845290,-160.88256992,0.0003,2]
[393563720,1762801845300,-942.17,0.0003,7]
[393563722,1762801845310,-155.0,0.0003,14]
[393563724,1762801845319,-478.32096809,0.0003,30]
[393563726,1762801845329,-478.32096809,0.0003,10]
[393563728,1762801845339,-167.0,0.0003,14]
[393563730,1762801845349,-156.44,0.00030053,2]
[393563732,1762801845360,-1059.27098682,0.0003013,2]
[393563734,1762801845370,-13671.68460919,0.0003013,2]
[393563736,1762801845379,-1485.08470711,0.0003013,5]
[393563738,1762801845389,-625.62859614,0.0003013,2]
[393563740,1762801845399,-199.08912711,0.0003013,2]
[393563742,1762801845408,-1208.30398739,0.0003013,2]
[393563744,1762801845418,-7630.98815266,0.0003013,2]
[393563745,1762801845428,-1012.62866116,0.0003013,7]
[393563747,1762801845437,-196.37,0.00030137,2]
[393563749,1762801845447,-156.44,0.00030369,2]
[393563751,1762801845456,-152.0,0.00030382,3]
[393563752,1762801845473,-357.6762453,0.00030432,2]
[393563753,1762801845484,-416.03518578,0.00030432,2]
[393563754,1762801845494,-150.0,0.00030585,2]
[393563755,1762801845504,-150.0,0.00030585,2]
[393563756,1762801845514,-150.0,0.00030585,2]
[393563757,1762801845524,-150.0,0.00030585,2]
[393563759,1762801845534,-1316.0,0.00030585,2]
[393563761,1762801845544,-574.0,0.00030585,2]
[393563763,1762801845553,-3426.0,0.00030585,2]
[393563765,1762801845563,-820.0,0.00030585,2]
[393563767,1762801845573,-1597.0,0.00030585,2]
[393563769,1762801845583,-813.0,0.00030585,2]
[393563771,1762801845593,-1274.0,0.00030585,2]
[393563773,1762801845606,-1189.0,0.00030585,2]
[393563775,1762801845615,-151.0,0.00030681,7]
[393563778,1762801845626,-503.69,0.00030684,2]
[393563781,1762801845636,-564.80130779,0.00030684,30]
[393563784,1762801845646,-500.0,0.00030684,120]
[393563787,1762801845655,-500.0,0.00030684,120]
[393563790,1762801845665,-536.80884023,0.00030684,120]
[393563792,1762801845675,-515.14114772,0.00030684,120]
[393563794,1762801845685,-500.0,0.00030684,120]
[393563796,1762801845695,-500.0,0.00030684,7]
[393563798,1762801845705,-500.0,0.00030684,120]
[393563800,1762801845716,-500.0,0.00030684,30]
[393563802,1762801845726,-500.0,0.00030684,120]
[393563804,1762801845736,-500.0,0.00030684,120]
[393563806,1762801845746,-500.0,0.00030684,30]
[393563808,1762801845756,-500.0,0.00030684,120]
[393563810,1762801845766,-500.0,0.00030684,120]
[393563813,1762801845776,-500.0,0.00030684,120]
[393563815,1762801845785,-95990.0,0.00030685,30]
[393563817,1762801845795,-151.0,0.00030685,31]
[393563819,1762801845805,-151.0,0.00030685,31]
[393563821,1762801845815,-151.0,0.00030685,31]
[393563823,1762801845825,-151.0,0.00030685,31]
[393563825,1762801845834,-151.0,0.00030685,31]
[393563827,1762801845844,-151.0,0.00030685,30]
[393563829,1762801845854,-151.0,0.00030685,30]
[393563831,1762801845864,-151.0,0.00030685,31]
[393563833,1762801845873,-284.0238278,0.00030685,31]
[393563835,1762801845884,-151.0,0.00030685,31]
[393563837,1762801845893,-255.545423,0.00030685,31]
[393563838,1762801845903,-255.545423,0.00030685,31]
[393563840,1762801845913,-255.545423,0.00030685,31]
[393563843,1762801845923,-255.545423,0.00030685,31]
[393563845,1762801845933,-151.0,0.00030685,31]
[393563847,1762801845943,-151.0,0.00030685,31]
[393563849,1762801845956,-151.0,0.00030685,31]
[393563850,1762801845970,-151.0,0.00030685,31]
[393563853,1762801845981,-255.306432,0.00030685,31]
[393563855,1762801845992,-151.0,0.00030685,31]
[393563857,1762801846003,-151.0,0.00030685,31]
[393563859,1762801846013,-151.0,0.00030685,31]
[393563861,1762801846022,-151.0,0.00030685,31]
[393563863,1762801846037,-151.0,0.00030685,31]
[393563865,1762801846049,-151.0,0.00030685,31]
[393563867,1762801846060,-151.0,0.00030685,31]
[393563869,1762801846071,-151.0,0.00030685,31]
[393563871,1762801846081,-151.0,0.00030685,31]
[393563873,1762801846092,-151.0,0.00030685,31]
[393563875,1762801846102,-151.0,0.00030685,31]
[393563877,1762801846114,-152.920775,0.00030685,31]
[393563879,1762801846125,-151.0,0.00030685,10]
[393563881,1762801846135,-152.753545,0.00030685,31]
[393563883,1762801846145,-151.0,0.00030685,31]
[393563885,1762801846156,-155.382324,0.00030685,31]
[393563887,1762801846166,-151.0,0.00030685,31]
[393563889,1762801846176,-151.0,0.00030685,31]
[393563891,1762801846187,-151.0,0.00030685,31]
[393563893,1762801846198,-151.0,0.00030685,31]
[393563895,1762801846209,-151.0,0.00030685,31]
[393563897,1762801846228,-151.0,0.00030685,31]
[393563900,1762801846240,-151.0,0.00030685,31]
[393563902,1762801846251,-151.0,0.00030685,31]
[393563904,1762801846262,-151.0,0.00030685,31]
[393563906,1762801846272,-151.0,0.00030685,31]
[393563908,1762801846283,-151.0,0.00030685,30]
[393563910,1762801846293,-151.0,0.00030685,31]
[393563911,1762801846302,-151.0,0.00030685,30]
[393563913,1762801846313,-4286.77,0.000307,30]
[393563915,1762801846323,-155.18887027,0.00030794,2]
[393563918,1762801846334,-600.0,0.00030822,80]
[393563920,1762801846345,-3823.71,0.000309,2]
[393563922,1762801846356,-159.0,0.00031225,120]
[393563924,1762801846367,-151.0,0.00031463,31]
[393563926,1762801846378,-214.91846,0.00031463,31]
[393563928,1762801846389,-214.91846,0.00031463,31]
[393563930,1762801846399,-214.91846,0.00031463,31]
[393563932,1762801846409,-214.91846,0.00031463,31]
[393563934,1762801846420,-239.84119403,0.00031484,2]
[393563936,1762801846434,-158.61344409,0.00031507,120]
[393563938,1762801846444,-4213.6530874,0.000316,2]
[393563940,1762801846457,-155.0,0.00031644,14]
[393563942,1762801846472,-2000.0,0.000318,2]
[393563944,1762801846483,-370.91026638,0.00031801,2]
[393563946,1762801846494,-431.42848765,0.00031801,2]
[393563948,1762801846505,-150.0,0.00031811,2]
[393563950,1762801846516,-595.43756423,0.00031811,2]
[393563953,1762801846528,-150.0,0.00031811,2]
[393563955,1762801846538,-287.63866297,0.00031811,2]
[393563956,1762801846548,-150.0,0.00031811,2]
[393563958,1762801846558,-308.85904091,0.00031811,2]
[393563961,1762801846568,-6662.0,0.00031965,2]
[393563963,1762801846579,-2142.0,0.00031965,2]
[393563965,1762801846588,-4404.347,0.00031965,2]
[393563967,1762801846599,-80000.0,0.00032,120]
[393563969,1762801846612,-478.32096809,0.00032,120]
[393563971,1762801846621,-3306.44580128,0.00032176,2]
[393563973,1762801846631,-300.92488091,0.000322,2]
[393563975,1762801846640,-3626.0,0.00032221,5]
[393563977,1762801846651,-645.61261135,0.00032347,2]
[393563979,1762801846661,-22708.74,0.000325,7]
[393563981,1762801846671,-2415.34,0.00032515,32]
[393563983,1762801846681,-159.0,0.00032786,120]
[393563985,1762801846691,-500.0,0.00032876,30]
[393563987,1762801846700,-334.84039979,0.00032876,30]
[393563989,1762801846710,-196.37,0.00032877,2]
[393563991,1762801846723,-151.0,0.00032877,31]
[393563993,1762801846733,-151.0,0.00032877,31]
[393563995,1762801846743,-500.0,0.00032877,30]
[393563997,1762801846753,-239.0793146,0.00032877,10]
[393563999,1762801846762,-150.0,0.00032877,2]
[393564001,1762801846771,-604.15441672,0.00032877,7]
[393564003,1762801846780,-180.72570687,0.0003288,30]
[393564005,1762801846790,-180.72570687,0.0003288,30]
[393564007,1762801846801,-180.72570687,0.0003288,30]
[393564008,1762801846811,-180.72570687,0.0003288,30]
[393564011,1762801846820,-180.72570687,0.0003288,30]
[393564033,1762801847042,-180.72570687,0.0003288,30]
[393564036,1762801847053,-180.72570687,0.0003288,30]
[393564038,1762801847063,-180.72570687,0.0003288,30]
[393564039,1762801847072,-180.72570687,0.0003288,30]
[393564041,1762801847082,-180.72570687,0.0003288,30]
[393564043,1762801847092,-180.72570687,0.0003288,30]
[393564045,1762801847103,-180.72570687,0.0003288,30]
[393564047,1762801847113,-180.72570687,0.0003288,30]
[393564049,1762801847123,-180.72570687,0.0003288,30]
[393564051,1762801847133,-180.72570687,0.0003288,30]
[393564053,1762801847143,-180.72570687,0.0003288,30]
[393564055,1762801847153,-180.72570687,0.0003288,30]
[393564057,1762801847163,-180.72570687,0.0003288,30]
[393564059,1762801847173,-180.72570687,0.0003288,30]
[393564061,1762801847184,-180.72,0.0003288,30]
[393564063,1762801847193,-421.69331603,0.0003288,30]
[393564065,1762801847203,-421.69331603,0.0003288,30]
[393564067,1762801847216,-421.69331603,0.0003288,30]
[393564069,1762801847225,-421.69331603,0.0003288,30]
[393564071,1762801847235,-421.69331603,0.0003288,30]
[393564073,1762801847245,-421.69331603,0.0003288,30]
[393564075,1762801847255,-421.69331603,0.0003288,30]
[393564077,1762801847266,-421.69331603,0.0003288,30]
[393564079,1762801847275,-421.69331603,0.0003288,30]
[393564081,1762801847286,-421.69331603,0.0003288,30]
[393564082,1762801847295,-421.69331603,0.0003288,30]
[393564084,1762801847305,-421.69331603,0.0003288,30]
[393564086,1762801847314,-421.69331603,0.0003288,30]
[393564087,1762801847323,-421.69331603,0.0003288,30]
[393564088,1762801847332,-421.69331603,0.0003288,30]
[393564089,1762801847342,-421.69331603,0.0003288,30]
[393564090,1762801847351,-421.69331603,0.0003288,30]
[393564091,1762801847360,-421.69331603,0.0003288,30]
[393564092,1762801847369,-421.69331603,0.0003288,30]
[393564093,1762801847378,-421.69,0.0003288,30]
[393564094,1762801847387,-206.46771177,0.0003288,30]
[393564095,1762801847395,-206.46771177,0.0003288,30]
[393564096,1762801847405,-206.46771177,0.0003288,30]
[393564098,1762801847414,-206.46771177,0.0003288,30]
[393564100,1762801847424,-206.46771177,0.0003288,30]
[393564102,1762801847433,-206.46771177,0.0003288,30]
[393564104,1762801847443,-206.46771177,0.0003288,30]
[393564106,1762801847452,-206.46771177,0.0003288,30]
[393564108,1762801847461,-206.46771177,0.0003288,30]
[393564110,1762801847472,-206.46771177,0.0003288,30]
[393564112,1762801847482,-206.46771177,0.0003288,30]
[393564114,1762801847492,-206.46771177,0.0003288,30]
[393564116,1762801847502,-206.46771177,0.0003288,30]
[393564118,1762801847512,-206.46771177,0.0003288,30]
[393564120,1762801847522,-206.46771177,0.0003288,30]
[393564122,1762801847531,-206.46771177,0.0003288,30]
[393564124,1762801847540,-206.46771177,0.0003288,30]
[393564126,1762801847550,-206.46771177,0.0003288,30]
[393564128,1762801847559,-206.46771177,0.0003288,30]
[393564130,1762801847568,-206.46,0.0003288,30]
[393564133,1762801847578,-481.75799414,0.0003288,30]
[393564134,1762801847588,-481.75799414,0.0003288,30]
[393564135,1762801847597,-481.75799414,0.0003288,30]
[393564137,1762801847607,-481.75799414,0.0003288,30]
[393564139,1762801847616,-481.75799414,0.0003288,30]
[393564141,1762801847625,-481.75799414,0.0003288,30]
[393564142,1762801847635,-481.75799414,0.0003288,30]
[393564143,1762801847644,-481.75799414,0.0003288,30]
[393564144,1762801847654,-481.75799414,0.0003288,30]
[393564145,1762801847663,-481.75799414,0.0003288,30]
[393564146,1762801847672,-481.75799414,0.0003288,30]
[393564147,1762801847682,-481.75799414,0.0003288,30]
[393564149,1762801847691,-481.75799414,0.0003288,30]
[393564151,1762801847700,-481.75799414,0.0003288,30]
[393564152,1762801847709,-481.75799414,0.0003288,30]
[393564154,1762801847720,-481.75799414,0.0003288,30]
[393564156,1762801847730,-481.75799414,0.0003288,30]
[393564158,1762801847739,-481.75799414,0.0003288,30]
[393564160,1762801847748,-481.75799414,0.0003288,30]
[393564162,1762801847758,-481.75,0.0003288,30]
[393564164,1762801847768,-151.0,0.0003288,31]
[393564166,1762801847777,-151.0,0.0003288,31]
[393564168,1762801847786,-151.0,0.0003288,31]
[393564170,1762801847795,-151.0,0.0003288,31]
[393564172,1762801847804,-166.77421,0.0003288,31]
[393564174,1762801847814,-153.503221,0.0003288,31]
[393564176,1762801847823,-151.0,0.0003288,31]
[393564177,1762801847831,-151.0,0.0003288,31]
[393564179,1762801847840,-152.155104,0.0003288,31]
[393564181,1762801847850,-151.0,0.0003288,31]
[393564183,1762801847859,-203.416642,0.0003288,31]
[393564185,1762801847868,-151.0,0.0003288,31]
[393564187,1762801847877,-153.916011,0.0003288,31]
[393564189,1762801847886,-155.467458,0.0003288,31]
[393564191,1762801847896,-151.0,0.0003288,31]
[393564193,1762801847905,-151.0,0.0003288,31]
[393564195,1762801847914,-151.0,0.0003288,31]
[393564197,1762801847923,-151.0,0.0003288,31]
[393564199,1762801847932,-151.0,0.0003288,31]
[393564201,1762801847941,-151.0,0.0003288,31]
[393564203,1762801847951,-151.0,0.0003288,31]
[393564205,1762801847965,-151.0,0.0003288,31]
[393564207,1762801847975,-297.673396,0.0003288,31]
[393564209,1762801847984,-151.0,0.0003288,31]
[393564211,1762801847994,-151.0,0.0003288,31]
[393564213,1762801848004,-182.295236,0.0003288,31]
[393564215,1762801848013,-151.0,0.0003288,31]
[393564217,1762801848022,-151.0,0.0003288,31]
[393564219,1762801848032,-151.0,0.0003288,31]
[393564221,1762801848042,-151.0,0.0003288,31]
[393564223,1762801848051,-156.857615,0.0003288,31]
[393564225,1762801848060,-156.180316,0.0003288,31]
[393564227,1762801848069,-151.0,0.0003288,31]
[393564229,1762801848079,-151.0,0.0003288,31]
[393564231,1762801848088,-151.0,0.0003288,31]
[393564233,1762801848097,-151.0,0.0003288,31]
[393564235,1762801848107,-151.0,0.0003288,31]
[393564237,1762801848116,-151.0,0.0003288,31]
[393564239,1762801848125,-151.0,0.0003288,31]
[393564241,1762801848135,-151.0,0.0003288,31]
[393564242,1762801848144,-151.0,0.0003288,31]
[393564244,1762801848153,-151.0,0.0003288,31]
[393564246,1762801848162,-151.0,0.0003288,31]
[393564248,1762801848171,-151.0,0.0003288,31]
[393564250,1762801848180,-151.0,0.0003288,31]
[393564252,1762801848190,-151.0,0.0003288,28]
[393564254,1762801848199,-151.0,0.0003288,31]
[393564256,1762801848209,-151.0,0.0003288,31]
[393564258,1762801848219,-151.0,0.0003288,31]
[393564261,1762801848230,-170.785674,0.0003288,31]
[393564262,1762801848239,-151.0,0.0003288,31]
[393564265,1762801848249,-151.0,0.0003288,31]
[393564267,1762801848259,-151.0,0.0003288,31]
[393564269,1762801848268,-151.0,0.0003288,31]
[393564271,1762801848279,-151.0,0.0003288,31]
[393564273,1762801848289,-151.0,0.0003288,31]
[393564275,1762801848298,-151.0,0.0003288,31]
[393564277,1762801848307,-151.0,0.0003288,31]
[393564279,1762801848316,-151.0,0.0003288,31]
[393564281,1762801848326,-151.0,0.0003288,31]
[393564283,1762801848335,-151.0,0.0003288,31]
[393564285,1762801848345,-151.0,0.0003288,31]
[393564287,1762801848354,-151.0,0.0003288,31]
[393564288,1762801848363,-151.0,0.0003288,31]
[393564290,1762801848373,-151.0,0.0003288,31]
[393564292,1762801848382,-151.0,0.0003288,31]
[393564294,1762801848392,-151.0,0.0003288,31]
[393564296,1762801848401,-151.0,0.0003288,15]
[393564298,1762801848411,-157.098488,0.0003288,31]
[393564300,1762801848421,-151.0,0.0003288,31]
[393564302,1762801848431,-151.0,0.0003288,31]
[393564304,1762801848441,-151.0,0.0003288,31]
[393564306,1762801848451,-151.0,0.0003288,31]
[393564308,1762801848460,-151.0,0.0003288,31]
[393564310,1762801848472,-151.0,0.0003288,31]
[393564312,1762801848482,-192.82308,0.0003288,31]
[393564314,1762801848492,-151.0,0.0003288,31]
[393564316,1762801848502,-151.0,0.0003288,31]
[393564318,1762801848511,-151.0,0.0003288,31]
[393564321,1762801848522,-151.0,0.0003288,31]
[393564323,1762801848532,-203.652641,0.0003288,31]
[393564325,1762801848542,-237.979136,0.0003288,31]
[393564327,1762801848551,-203.652641,0.0003288,31]
[393564329,1762801848562,-151.0,0.0003288,31]
[393564331,1762801848572,-203.652641,0.0003288,31]
[393564333,1762801848582,-155.821304,0.0003288,31]
[393564335,1762801848591,-203.652641,0.0003288,31]
[393564337,1762801848600,-151.0,0.0003288,31]
[393564339,1762801848610,-151.0,0.0003288,31]
[393564341,1762801848619,-151.827902,0.0003288,31]
[393564343,1762801848629,-151.0,0.0003288,31]
[393564344,1762801848639,-151.0,0.0003288,31]
[393564346,1762801848648,-151.0,0.0003288,31]
[393564348,1762801848657,-251.176308,0.0003288,31]
[393564351,1762801848667,-302.0,0.000329,2]
[393564352,1762801848676,-500.0,0.00032968,2]
[393564354,1762801848685,-500.0,0.00032968,2]
[393564356,1762801848695,-315.95055135,0.00032968,30]
[393564358,1762801848704,-800.78310168,0.00033,2]
[393564361,1762801848713,-942.17,0.00033,14]
[393564363,1762801848725,-478.09862864,0.00033,120]
[393564364,1762801848734,-174.63370969,0.00033014,2]
[393564366,1762801848743,-152.0,0.00033041,4]
[393564368,1762801848753,-500.0,0.00033151,30]
[393564370,1762801848763,-850.48,0.00033165,2]
[393564372,1762801848772,-384.63394623,0.0003317,2]
[393564374,1762801848782,-447.3913417,0.0003317,2]
[393564376,1762801848791,-2000.0,0.00033277,120]
[393564378,1762801848800,-4286.77,0.000333,30]
[393564380,1762801848809,-445.0,0.000333,2]
[393564382,1762801848819,-1000.0,0.00033333,7]
[393564384,1762801848828,-659.14357785,0.00033424,120]
[393564386,1762801848838,-500.0,0.00033425,30]
[393564388,1762801848847,-150.0,0.00033585,2]
[393564390,1762801848856,-150.0,0.00033585,2]
[393564392,1762801848866,-1316.0,0.00033585,2]
[393564394,1762801848874,-574.0,0.00033585,2]
[393564396,1762801848884,-3426.0,0.00033585,2]
[393564398,1762801848893,-820.0,0.00033585,2]
[393564400,1762801848903,-1597.0,0.00033585,2]
[393564402,1762801848915,-813.0,0.00033585,2]
[393564404,1762801848924,-1274.0,0.00033585,2]
[393564406,1762801848933,-1189.0,0.00033585,2]
[393564408,1762801848943,-500.0,0.00033699,30]
[393564410,1762801848956,-413.468054,0.00033826,120]
[393564412,1762801848967,-500.0,0.00033973,30]
[393564414,1762801848976,-14396.08484147,0.00034,2]
[393564416,1762801848986,-2437.64,0.00034,60]
[393564418,1762801848995,-222.71783792,0.00034168,120]
[393564420,1762801849007,-248.71531821,0.00034223,2]
[393564422,1762801849016,-500.0,0.00034247,30]
[393564424,1762801849025,-600.0,0.00034247,120]
[393564426,1762801849035,-2274.0,0.00034247,15]
[393564428,1762801849046,-942.17,0.000343,14]
[393564430,1762801849055,-159.0,0.00034426,120]
[393564432,1762801849065,-659.91542078,0.0003452,120]
[393564434,1762801849074,-414.24,0.00034521,30]
[393564436,1762801849083,-398.86540225,0.00034539,2]
[393564438,1762801849093,-463.94482134,0.00034539,2]
[393564440,1762801849102,-3823.71,0.000346,2]
[393564442,1762801849111,-2000.0,0.00034602,120]
[393564444,1762801849121,-151.0,0.00034622,7]
[393564446,1762801849129,-1242.0,0.00034622,7]
[393564448,1762801849138,-1242.0,0.00034622,7]
[393564450,1762801849148,-152.0,0.00034622,7]
[393564452,1762801849157,-1242.0,0.00034622,7]
[393564454,1762801849166,-152.0,0.00034622,7]
[393564456,1762801849175,-1242.0,0.00034622,7]
[393564458,1762801849184,-152.0,0.00034622,7]
[393564460,1762801849193,-1278.32946379,0.00034622,7]
[393564462,1762801849203,-155.8583209,0.00034622,7]
[393564464,1762801849212,-151.0,0.00034622,7]
[393564466,1762801849225,-151.0,0.00034622,7]
[393564467,1762801849235,-151.0,0.00034622,7]
[393564469,1762801849244,-151.0,0.00034622,7]
[393564471,1762801849254,-160.63576155,0.00034622,7]
[393564473,1762801849263,-500.0,0.00034631,7]
[393564475,1762801849273,-500.0,0.00034631,7]
[393564477,1762801849283,-966.32813137,0.00034631,7]
[393564479,1762801849292,-500.0,0.00034631,7]
[393564481,1762801849301,-221.56866496,0.00034631,7]
[393564483,1762801849310,-500.0,0.00034631,7]
[393564485,1762801849320,-500.0,0.00034631,7]
[393564487,1762801849330,-500.0,0.00034631,7]
[393564489,1762801849339,-500.0,0.00034631,7]
[393564491,1762801849348,-500.0,0.00034631,7]
[393564493,1762801849358,-600.0,0.00034631,7]
[393564495,1762801849371,-500.0,0.00034631,7]
[393564497,1762801849380,-600.0,0.00034631,7]
[393564499,1762801849389,-500.0,0.00034631,7]
[393564501,1762801849399,-600.0,0.00034631,7]
[393564503,1762801849408,-500.0,0.00034631,7]
[393564505,1762801849418,-500.0,0.00034631,7]
[393564507,1762801849427,-600.0,0.00034631,7]
[393564509,1762801849436,-500.0,0.00034631,7]
[393564511,1762801849446,-500.0,0.00034631,7]
[393564513,1762801849456,-474.5962031,0.00034631,7]
[393564515,1762801849468,-600.0,0.00034631,7]
[393564518,1762801849481,-500.0,0.00034631,7]
[393564519,1762801849491,-800.0,0.00034631,7]
[393564520,1762801849500,-600.0,0.00034631,7]
[393564521,1762801849510,-500.0,0.00034631,7]
[393564523,1762801849520,-600.0,0.00034631,7]
[393564524,1762801849533,-278.99273219,0.00034631,7]
[393564525,1762801849543,-500.0,0.00034631,7]
[393564526,1762801849552,-600.0,0.00034631,7]
[393564527,1762801849561,-500.0,0.00034631,7]
[393564528,1762801849571,-600.0,0.00034631,7]
[393564529,1762801849581,-165.51749561,0.00034631,7]
[393564530,1762801849591,-500.0,0.00034631,7]
[393564531,1762801849600,-500.0,0.00034631,7]
[393564532,1762801849609,-600.0,0.00034631,7]
[393564533,1762801849619,-499.4701768,0.00034631,7]
[393564534,1762801849628,-316.28471736,0.00034631,7]
[393564535,1762801849638,-500.0,0.00034631,7]
[393564536,1762801849647,-600.0,0.00034631,7]
[393564537,1762801849657,-998.29757791,0.00034631,7]
[393564538,1762801849666,-600.0,0.00034631,7]